bitfinex/quotes_SOLUSD_20240808
["timestamp","ask_amount","ask_price","bid_price","bid_amount"]
[1723088855757,6.1173,155.66,155.61,28.82120085]
[1723088855953,16.254,155.67,155.63,27.71]
[1723088856469,16.254,155.67,155.61,27.71]
[1723088857883,16.254,155.67,155.59,27.71]
[1723088858270,6.0077,155.64,155.55,27.71]
[1723088859679,6.0077,155.64,155.51,55.04]
[1723088860282,6.0077,155.64,155.52,20.0]
[1723088860479,6.0077,155.64,155.53,45.34]
[1723088860778,6.0077,155.64,155.54,20.0]
[1723088861085,6.0077,155.64,155.55,45.0]
[1723088861391,0.47483249,155.63,155.55,45.0]
[1723088862584,6.0077,155.64,155.55,45.0]
[1723088863690,6.0077,155.64,155.56,20.17]
[1723088863984,16.254,155.67,155.57,80.75]
[1723088864291,16.254,155.67,155.58,20.0]
[1723088864999,16.254,155.67,155.59,45.0]
[1723088865575,16.254,155.67,155.58,20.0]
[1723088865982,16.254,155.67,155.59,45.0]
[1723088866376,16.254,155.67,155.58,20.0]
[1723088866595,0.47483249,155.66,155.58,20.0]
[1723088866904,16.254,155.67,155.58,20.0]
[1723088867103,16.254,155.67,155.59,45.0]
[1723088868595,16.254,155.67,155.6,1.34642115]
[1723088868777,16.254,155.67,155.61,1.17634554]
[1723088868979,16.254,155.67,155.61,45.0]
[1723088877315,16.72883249,155.67,155.56,22.4413]
[1723088877520,16.254,155.67,155.57,20.0]
[1723088878032,16.254,155.67,155.52,27.05690164]
[1723088878033,16.72883249,155.67,155.52,27.05690164]
[1723088878194,20.0,155.66,155.52,27.05690164]
[1723088878519,0.34,155.65,155.55,1.28526801]
[1723088878723,0.34,155.65,155.52,15.1402]
[1723088878915,6.481,155.64,155.52,15.1402]
[1723088879229,20.17,155.63,155.52,15.1402]
[1723088879428,20.0,155.63,155.52,15.1402]
[1723088879819,20.0,155.63,155.55,27.81]
[1723088880300,15.0776,155.59,155.49,0.8459176]
[1723088880505,0.47483249,155.58,155.49,0.8459176]
[1723088880700,65.81483249,155.58,155.49,0.8459176]
[1723088881001,0.47483249,155.57,155.49,0.8459176]
[1723088881204,6.4094,155.55,155.49,0.8459176]
[1723088881525,20.81483249,155.54,155.49,0.8459176]
[1723088881825,20.0,155.54,155.49,0.8459176]
[1723088882124,20.47483249,155.54,155.49,0.8459176]
[1723088882431,20.47483249,155.54,155.4,109.57107525]
[1723088882432,53.5761,155.53,155.4,109.57107525]
[1723088882614,8.2361,155.53,155.41,0.70637467]
[1723088882926,8.2361,155.53,155.43,35.8]
[1723088882927,20.0,155.52,155.43,35.8]
[1723088883105,20.0,155.52,155.4,73.77107525]
[1723088883309,0.17,155.51,155.41,35.8]
[1723088884402,0.34,155.51,155.41,35.8]
[1723088884731,45.34,155.51,155.41,35.8]
[1723088885021,20.0,155.52,155.41,35.8]
[1723088885619,20.0,155.52,155.41,55.09]
[1723088885932,6.4094,155.55,155.44,55.09]
[1723088886114,6.4094,155.55,155.45,46.41089463]
[1723088886425,6.4094,155.55,155.46,21.07082574]
[1723088886726,6.4094,155.55,155.47,45.34]
[1723088887100,6.4094,155.55,155.47,45.0]
[1723088887831,15.8302,155.58,155.48,0.34]
[1723088888004,16.30503249,155.58,155.48,0.34]
[1723088888215,15.8302,155.58,155.48,0.17]
[1723088888718,15.8302,155.58,155.48,0.34]
[1723088888919,20.0,155.57,155.48,0.34]
[1723088890219,20.0,155.57,155.48,1.28646976]
[1723088890606,6.547,155.59,155.5,55.09]
[1723088890812,22.4053,155.63,155.51,102.25038177]
[1723088891031,6.3426,155.63,155.53,55.09]
[1723088891243,6.3426,155.63,155.54,66.37468215]
[1723088891408,6.3426,155.63,155.54,45.34]
[1723088891609,6.3426,155.63,155.54,45.17]
[1723088891820,6.3426,155.63,155.54,45.0]
[1723088892231,6.3426,155.63,155.55,0.17]
[1723088892426,6.3426,155.63,155.55,0.34]
[1723088892634,6.3426,155.63,155.55,0.86480196]
[1723088892830,6.3426,155.63,155.55,0.34]
[1723088893228,6.3426,155.63,155.53,35.8]
[1723088893539,6.3426,155.63,155.54,20.17]
[1723088894038,6.3426,155.63,155.55,45.0]
[1723088894538,6.3426,155.63,155.56,0.17]
[1723088895036,6.3426,155.63,155.55,45.0]
[1723088896242,6.3426,155.63,155.37,664.3]
[1723088896243,20.47483249,155.62,155.51,16.5855]
[1723088896436,20.47483249,155.62,155.47,58.5652]
[1723088897441,0.17,155.61,155.48,19.29]
[1723088897741,20.0,155.62,155.48,19.29]
[1723088898036,0.17,155.61,155.49,1.19477306]
[1723088898231,20.0,155.62,155.49,1.19477306]
[1723088898463,15.6959,155.61,155.49,45.0]
[1723088898628,20.47483249,155.62,155.39,35.8]
[1723088898629,13.8392,155.58,155.39,35.8]
[1723088898820,45.64483249,155.57,155.39,35.8]
[1723088899020,20.17,155.56,155.39,35.8]
[1723088899226,45.64483249,155.55,155.39,35.8]
[1723088899555,20.64483249,155.54,155.4,19.29]
[1723088899843,0.17,155.53,155.39,35.8]
[1723088900141,45.34,155.53,155.39,35.8]
[1723088900338,20.0,155.52,155.39,35.8]
[1723088900545,0.34,155.51,155.39,35.8]
[1723088900843,0.17,155.51,155.39,35.8]
[1723088901425,20.47483249,155.52,155.39,55.09]
[1723088901739,20.47483249,155.52,155.39,35.8]
[1723088902039,0.47483249,155.51,155.39,55.09]
[1723088902235,20.0,155.52,155.39,35.8]
[1723088902647,20.47483249,155.52,155.39,35.8]
[1723088902816,26.86261448,155.52,155.39,35.8]
[1723088903348,0.17,155.51,155.39,35.8]
[1723088903526,26.38778199,155.52,155.39,35.8]
[1723088903724,0.47483249,155.51,155.39,35.8]
[1723088904141,0.17,155.5,155.39,35.8]
[1723088904342,20.0,155.5,155.39,35.8]
[1723088904517,0.47483249,155.51,155.4,45.17]
[1723088904722,27.20261448,155.52,155.4,45.17]
[1723088905031,0.17,155.51,155.4,45.17]
[1723088905719,0.17,155.51,155.43,27.85]
[1723088906320,6.2572,155.5,155.37,0.3901613]
[1723088906546,20.0,155.49,155.4,27.85]
[1723088906746,20.0,155.49,155.42,27.85]
[1723088907044,6.38778199,155.52,155.37,20.57655687]
[1723088907355,6.38778199,155.52,155.45,27.85]
[1723088909551,6.38778199,155.52,155.43,27.85]
[1723088909853,0.47483249,155.51,155.43,27.85]
[1723088910353,0.17,155.5,155.43,27.85]
[1723088910649,6.38778199,155.52,155.43,27.85]
[1723088911355,20.81483249,155.51,155.43,27.85]
[1723088911651,20.47483249,155.51,155.42,27.85]
[1723088911834,20.0,155.51,155.42,27.85]
[1723088912228,45.0,155.5,155.42,27.85]
[1723088912549,20.0,155.49,155.41,27.85]
[1723088912850,20.47483249,155.51,155.43,27.85]
[1723088913152,19.69755223,155.5,155.4,73.77107525]
[1723088913441,19.69755223,155.5,155.41,27.85]
[1723088913619,20.0,155.49,155.41,27.85]
[1723088915627,20.0,155.49,155.42,45.0]
[1723088916230,20.0,155.49,155.43,27.85]
[1723088916433,6.2572,155.54,155.43,27.85]
[1723088916642,6.36128792,155.52,155.43,27.85]
[1723088916838,20.0,155.51,155.43,27.85]
[1723088920984,0.47483249,155.5,155.42,45.0]
[1723088921128,0.47483249,155.5,155.4,73.77107525]
[1723088921129,0.34,155.49,155.4,73.77107525]
[1723088921331,0.47483249,155.48,155.4,73.77107525]
[1723088922257,19.79484723,155.49,155.4,73.77107525]
[1723088922552,19.79484723,155.49,155.41,27.85]
[1723088922762,6.36128792,155.52,155.41,27.85]
[1723088923054,6.36128792,155.52,155.4,73.77107525]
[1723088923055,27.85,155.5,155.4,73.77107525]
[1723088924054,6.4266,155.51,155.4,73.77107525]
[1723088924055,64.5927,155.49,155.4,73.77107525]
[1723088924233,27.85,155.45,155.4,60.60997525]
[1723088924438,0.17,155.46,155.4,60.60997525]
[1723088924740,20.17,155.46,155.4,60.60997525]
[1723088924946,26.6025,155.46,155.4,60.60997525]
[1723088925154,20.17,155.46,155.4,60.60997525]
[1723088925553,20.0,155.46,155.4,60.60997525]
[1723088926164,0.17,155.45,155.4,60.60997525]
[1723088926360,0.34,155.45,155.4,60.60997525]
[1723088926667,28.19,155.45,155.4,60.60997525]
[1723088926870,32.7976035,155.44,155.4,60.60997525]
[1723088927042,0.34,155.43,155.4,60.60997525]
[1723088927248,26.3643035,155.44,155.4,60.60997525]
[1723088927463,20.0,155.44,155.4,60.60997525]
[1723088927659,6.174,155.47,155.4,60.60997525]
[1723088928074,12.6061,155.47,155.4,60.60997525]
[1723088928848,45.17,155.46,155.4,60.60997525]
[1723088929050,0.17,155.45,155.4,60.60997525]
[1723088929357,20.0,155.45,155.4,60.60997525]
[1723088929971,20.17,155.46,155.4,60.60997525]
[1723088930185,20.0,155.46,155.4,60.60997525]
[1723088932165,0.17,155.45,155.4,60.60997525]
[1723088932370,45.34,155.45,155.4,60.60997525]
[1723088932562,45.34,155.45,155.34,27.85]
[1723088932766,20.0,155.44,155.34,27.85]
[1723088933473,0.34,155.43,155.34,27.85]
[1723088933868,20.0,155.44,155.34,27.85]
[1723088934098,0.34,155.43,155.34,27.85]
[1723088934563,45.34,155.43,155.34,27.85]
[1723088934765,20.0,155.42,155.34,27.85]
[1723088935561,20.0,155.45,155.34,27.85]
[1723088935779,45.34,155.44,155.34,27.85]
[1723088935961,20.0,155.43,155.34,27.85]
[1723088936659,20.34,155.44,155.34,27.85]
[1723088937362,20.34,155.44,155.33,16.4385176]
[1723088937673,45.0,155.43,155.33,16.4385176]
[1723088937870,20.0,155.42,155.33,16.4385176]
[1723088938197,26.36060718,155.44,155.34,72.85]
[1723088938401,26.36060718,155.44,155.33,0.8459176]
[1723088938696,45.34,155.43,155.33,0.8459176]
[1723088938872,20.0,155.42,155.33,0.8459176]
[1723088939065,45.34,155.41,155.33,0.8459176]
[1723088939385,20.0,155.4,155.33,0.8459176]
[1723088940497,45.34,155.39,155.33,0.8459176]
[1723088940693,20.0,155.38,155.33,0.8459176]
[1723088940995,45.34,155.37,155.33,0.8459176]
[1723088941181,20.0,155.36,155.33,0.8459176]
[1723088942076,20.0,155.38,155.33,0.8459176]
[1723088942415,34.2874,155.34,155.33,0.8459176]
[1723088942567,93.19,155.34,155.33,0.8459176]
[1723088943492,99.6274,155.34,155.33,0.8459176]
[1723088944094,65.34,155.34,155.33,0.8459176]
[1723088945379,20.0,155.34,155.33,0.8459176]
[1723088945700,34.1304,155.39,155.33,0.8459176]
[1723088946017,6.2804,155.39,155.33,0.8459176]
[1723088947893,8.74754901,155.43,155.33,0.8459176]
[1723088947894,6.3949,155.42,155.33,0.8459176]
[1723088948387,12.8291,155.42,155.33,0.8459176]
[1723088948601,6.72129071,155.41,155.33,0.8459176]
[1723088949305,20.0,155.4,155.33,0.8459176]
[1723088951603,28.02,155.39,155.33,0.8459176]
[1723088951805,20.0,155.38,155.33,0.8459176]
[1723088952183,20.0,155.4,155.33,0.8459176]
[1723088952378,0.34,155.39,155.33,0.8459176]
[1723088953199,27.85,155.38,155.33,0.8459176]
[1723088953385,26.7762,155.37,155.33,0.8459176]
[1723088953588,51.4367,155.36,155.33,0.8459176]
[1723088953795,6.438,155.33,155.26,15.4852]
[1723088954106,27.85,155.34,155.26,15.4852]
[1723088954107,27.85,155.31,155.26,15.4852]
[1723088954309,20.0,155.3,155.26,15.4852]
[1723088954884,20.34,155.32,155.26,15.4852]
[1723088955309,20.0,155.31,155.26,15.4852]
[1723088955498,20.0,155.33,155.26,15.4852]
[1723088955884,20.34,155.34,155.26,15.4852]
[1723088957989,20.0,155.34,155.26,15.4852]
[1723088958300,20.0,155.36,155.26,15.4852]
[1723088958605,0.34,155.35,155.26,15.4852]
[1723088958785,7.06041187,155.35,155.26,15.4852]
[1723088958984,20.0,155.34,155.26,15.4852]
[1723088959178,6.72041187,155.35,155.26,15.4852]
[1723088961015,6.4358,155.38,155.26,15.4852]
[1723088961208,6.72090024,155.36,155.26,15.4852]
[1723088961516,20.0,155.35,155.26,15.4852]
[1723088963800,0.17,155.34,155.26,15.4852]
[1723088964092,0.34,155.34,155.26,15.4852]
[1723088964293,0.17,155.34,155.26,15.4852]
[1723088965315,45.34,155.34,155.26,15.4852]
[1723088965628,20.0,155.33,155.26,15.4852]
[1723088966820,20.0,155.34,155.26,15.4852]
[1723088967633,20.0,155.35,155.26,15.4852]
[1723088969500,20.0,155.35,155.27,6.2177]
[1723088970316,6.72090024,155.36,155.29,27.85]
[1723088970521,34.2846,155.41,155.29,27.85]
[1723088971032,6.4354,155.39,155.29,27.85]
[1723088971812,6.72923954,155.4,155.29,27.85]
[1723088972700,20.0,155.39,155.29,27.85]
[1723088977728,6.4358,155.38,155.29,27.85]
[1723088977933,20.0,155.37,155.29,27.85]
[1723088978524,20.0,155.38,155.29,27.85]
[1723088978814,73.02,155.37,155.28,16.2297]
[1723088979013,27.85,155.32,155.19,22.3738]
[1723088979218,34.2895,155.3,155.19,22.3738]
[1723088979424,20.0,155.29,155.19,22.3738]
[1723088979632,20.0,155.29,155.2,27.85]
[1723088980040,20.34,155.31,155.2,27.85]
[1723088980245,20.0,155.31,155.21,15.8677]
[1723088980417,26.4379,155.33,155.21,15.8677]
[1723088981426,26.4379,155.33,155.22,27.85]
[1723088981427,20.0,155.33,155.22,27.85]
[1723088981628,6.72895248,155.32,155.22,27.85]
[1723088984049,28.02,155.31,155.21,15.8677]
[1723088984221,34.2896,155.29,155.21,15.8677]
[1723088984418,65.34,155.28,155.21,15.8677]
[1723088985149,20.0,155.28,155.21,15.8677]
[1723088986750,45.17,155.27,155.21,15.8677]
[1723088986955,20.0,155.28,155.21,15.8677]
[1723088987157,20.0,155.31,155.21,15.8677]
[1723088987849,26.4387,155.31,155.21,15.8677]
[1723088988040,20.0,155.31,155.21,43.7177]
[1723088988246,6.72895248,155.32,155.23,27.85]
[1723088988446,6.72895248,155.32,155.21,43.7177]
[1723088989726,20.0,155.31,155.21,43.7177]
[1723088991333,6.72895248,155.32,155.21,43.7177]
[1723088991648,20.0,155.31,155.21,43.7177]
[1723088996828,0.17,155.3,155.21,15.8677]
[1723088997057,0.34,155.3,155.21,15.8677]
[1723088997259,34.2896,155.29,155.21,15.8677]
[1723088997554,65.34,155.28,155.21,15.8677]
[1723088999467,20.0,155.28,155.21,15.8677]
[1723088999644,20.0,155.29,155.21,15.8677]
[1723089001360,28.02,155.28,155.21,15.8677]
[1723089001560,26.4407,155.27,155.21,15.8677]
[1723089001860,20.0,155.27,155.21,15.8677]
[1723089002237,0.17,155.28,155.21,15.8677]
[1723089002437,45.34,155.28,155.21,15.8677]
[1723089002647,20.0,155.27,155.21,15.8677]
[1723089003336,0.17,155.28,155.19,6.4589]
[1723089003337,6.441,155.26,155.19,16.0488]
[1723089003533,20.0,155.25,155.19,16.0488]
[1723089004132,20.0,155.26,155.19,16.0488]
[1723089004336,20.17,155.28,155.19,16.0488]
[1723089004539,20.0,155.28,155.19,16.0488]
[1723089004745,27.85,155.31,155.19,16.0488]
[1723089005351,13.14444067,155.3,155.19,16.0488]
[1723089005861,6.70534067,155.3,155.19,16.0488]
[1723089006064,13.14464067,155.3,155.19,16.0488]
[1723089006361,26.4396,155.29,155.19,16.0488]
[1723089006572,20.0,155.29,155.19,16.0488]
[1723089006940,26.4395,155.29,155.19,16.0488]
[1723089007252,27.85,155.28,155.19,16.0488]
[1723089007461,6.4408,155.26,155.19,16.0488]
[1723089007659,20.0,155.25,155.19,16.0488]
[1723089008336,20.0,155.26,155.19,16.0488]
[1723089008665,20.0,155.27,155.19,16.0488]
[1723089009043,6.69154574,155.28,155.21,6.6273]
[1723089009360,6.69154574,155.28,155.22,15.5564]
[1723089010047,6.4384,155.32,155.22,15.5564]
[1723089010366,6.68821826,155.3,155.22,15.5564]
[1723089010547,20.0,155.29,155.22,15.5564]
[1723089010740,6.68821826,155.3,155.22,43.4064]
[1723089010941,6.68821826,155.3,155.24,27.85]
[1723089011162,6.68821826,155.3,155.23,16.3547]
[1723089012261,20.0,155.29,155.23,16.3547]
[1723089018890,28.19,155.28,155.23,16.3547]
[1723089019047,20.0,155.27,155.23,16.3547]
[1723089019875,26.4395,155.29,155.23,16.3547]
[1723089020561,6.69083704,155.28,155.23,16.3547]
[1723089020752,20.0,155.27,155.23,16.3547]
[1723089023662,20.0,155.27,155.24,1.28817608]
[1723089024184,20.0,155.27,155.23,16.3547]
[1723089024385,6.69083704,155.28,155.23,16.3547]
[1723089024566,6.69083704,155.28,155.24,1.28734629]
[1723089024763,2.6132198,155.29,155.24,1.28734629]
[1723089025073,26.68184184,155.3,155.24,1.28734629]
[1723089025584,26.68184184,155.3,155.23,16.3547]
[1723089025777,33.12104184,155.3,155.23,16.3547]
[1723089026984,6.68184184,155.3,155.23,16.3547]
[1723089027280,6.68184184,155.3,155.25,16.216]
[1723089027666,19.17,155.26,155.21,16.216]
[1723089027867,6.4408,155.26,155.21,16.216]
[1723089028174,19.17,155.24,155.21,16.216]
[1723089028497,6.68184184,155.3,155.22,19.17]
[1723089028782,19.17,155.28,155.22,19.17]
[1723089028987,6.68184184,155.3,155.24,19.17]
[1723089029291,25.85184184,155.3,155.24,19.17]
[1723089029461,6.68184184,155.3,155.23,19.17]
[1723089029661,6.68184184,155.3,155.24,19.17]
[1723089030768,6.68184184,155.3,155.21,16.216]
[1723089030973,19.17,155.29,155.23,19.17]
[1723089031576,19.17,155.26,155.21,16.216]
[1723089031960,19.17,155.24,155.21,16.216]
[1723089032283,19.17,155.22,155.21,16.216]
[1723089032673,6.442,155.24,155.21,16.216]
[1723089032871,39.17,155.23,155.21,16.216]
[1723089033270,19.17,155.22,155.18,15.3563]
[1723089033459,19.17,155.21,155.18,15.3563]
[1723089033678,20.0,155.23,155.18,15.3563]
[1723089034072,20.0,155.26,155.18,15.3563]
[1723089034277,6.4416,155.24,155.18,15.3563]
[1723089034494,20.0,155.23,155.18,15.3563]
[1723089034787,20.0,155.23,155.18,16.54880902]
[1723089034994,20.0,155.26,155.18,15.3563]
[1723089035296,6.6784499,155.24,155.18,15.3563]
[1723089035762,20.0,155.23,155.18,15.3563]
[1723089039477,6.6784499,155.24,155.18,15.3563]
[1723089039903,6.6784499,155.24,155.18,16.64474999]
[1723089040103,6.6784499,155.24,155.18,15.3563]
[1723089041501,13.1200499,155.24,155.18,15.3563]
[1723089042300,6.4421,155.23,155.18,15.3563]
[1723089042516,6.6784499,155.24,155.18,15.3563]
[1723089042808,20.0,155.23,155.18,15.3563]
[1723089045102,13.4603499,155.24,155.18,15.3563]
[1723089045286,20.0,155.23,155.18,15.3563]
[1723089047582,6.67562725,155.22,155.18,15.3563]
[1723089051603,34.63562725,155.22,155.17,0.8459176]
[1723089051809,20.0,155.21,155.17,0.8459176]
[1723089055690,19.18,155.19,155.17,0.8459176]
[1723089055894,19.18,155.2,155.17,0.8459176]
[1723089056210,25.6241,155.18,155.17,0.8459176]
[1723089056422,20.0,155.19,155.17,0.8459176]
[1723089056787,6.67562725,155.22,155.17,20.0259176]
[1723089057009,6.67562725,155.22,155.18,19.18]
[1723089057207,6.67562725,155.22,155.19,19.18]
[1723089057390,6.67562725,155.22,155.17,26.1593176]
[1723089057895,6.67562725,155.22,155.18,35.2912]
[1723089058093,6.67562725,155.22,155.21,19.18]
[1723089058886,21.702637,155.29,155.21,19.18]
[1723089059100,25.85192339,155.28,155.21,19.18]
[1723089059702,25.85192339,155.28,155.18,16.1112]
[1723089059703,6.67192339,155.28,155.22,19.18]
[1723089059910,6.67192339,155.28,155.24,15.7147]
[1723089060613,6.67192339,155.28,155.24,34.8947]
[1723089061023,6.67192339,155.28,155.24,15.7147]
[1723089062625,3.31903971,155.36,155.24,50.0639]
[1723089062791,6.67159161,155.31,155.25,1.28788157]
[1723089062991,31.25903971,155.36,155.25,1.28788157]
[1723089063195,3.31903971,155.36,155.28,27.94]
[1723089063416,27.94,155.41,155.29,15.8994]
[1723089063658,27.94,155.41,155.31,6.2249]
[1723089063926,34.60893488,155.41,155.31,6.2249]
[1723089064137,6.66893488,155.41,155.31,6.2249]
[1723089064430,6.66893488,155.41,155.33,16.5067]
[1723089064724,27.94,155.45,155.33,16.5067]
[1723089064907,6.66718793,155.44,155.33,16.5067]
[1723089065527,27.94,155.43,155.33,16.5067]
[1723089065911,34.3739,155.43,155.33,16.5067]
[1723089066105,27.94,155.43,155.33,16.5067]
[1723089066308,20.0,155.42,155.33,16.5067]
[1723089066800,73.11,155.41,155.33,16.5067]
[1723089067029,20.0,155.4,155.33,16.5067]
[1723089067902,0.17,155.41,155.33,16.5067]
[1723089068212,26.4342,155.42,155.33,16.5067]
[1723089068416,20.0,155.42,155.33,16.5067]
[1723089069025,20.0,155.43,155.33,16.5067]
[1723089070021,6.66718793,155.44,155.34,27.94]
[1723089070430,2.52265407,155.45,155.34,27.94]
[1723089070727,2.52265407,155.45,155.35,45.0]
[1723089071232,6.66648426,155.47,155.37,21.731]
[1723089072234,6.66648426,155.47,155.4,27.94]
[1723089072521,34.60501932,155.52,155.4,27.94]
[1723089072729,6.66501932,155.52,155.42,27.94]
[1723089073103,9.16165254,155.52,155.43,6.1948]
[1723089073304,2.49663322,155.52,155.44,27.94]
[1723089073505,40.6495,155.59,155.46,27.94]
[1723089073724,13.08954015,155.58,155.46,27.94]
[1723089074635,6.66204015,155.58,155.46,27.94]
[1723089075517,6.66204015,155.58,155.47,22.4586]
[1723089075714,2.55772747,155.59,155.48,72.94]
[1723089075919,27.94,155.61,155.48,27.94]
[1723089076110,6.4286,155.56,155.47,22.4586]
[1723089076935,0.34,155.55,155.47,22.4586]
[1723089077125,20.34,155.55,155.47,22.4586]
[1723089077323,0.34,155.55,155.47,22.4586]
[1723089077523,20.0,155.55,155.47,22.4586]
[1723089078233,20.0,155.57,155.47,22.4586]
[1723089078417,2.5459164,155.56,155.47,22.4586]
[1723089078642,20.0,155.57,155.47,22.4586]
[1723089079438,0.34,155.56,155.47,22.4586]
[1723089079632,45.34,155.56,155.47,22.4586]
[1723089079825,20.0,155.55,155.47,22.4586]
[1723089080028,0.17,155.54,155.47,22.4586]
[1723089080232,51.7696,155.54,155.47,22.4586]
[1723089080429,20.0,155.53,155.47,22.4586]
[1723089080734,0.34,155.52,155.47,22.4586]
[1723089081037,0.34,155.52,155.47,16.226]
[1723089081335,45.34,155.52,155.47,16.226]
[1723089081513,20.0,155.51,155.47,16.226]
[1723089083737,20.0,155.54,155.47,16.226]
[1723089084043,51.7697,155.53,155.47,16.226]
[1723089084247,20.0,155.52,155.47,16.226]
[1723089084819,45.17,155.51,155.47,16.226]
[1723089085020,20.17,155.5,155.47,16.226]
[1723089085729,0.17,155.49,155.43,22.6571]
[1723089086141,51.6013,155.49,155.43,16.6157]
[1723089086436,20.17,155.48,155.43,16.6157]
[1723089086633,0.17,155.47,155.43,16.6157]
[1723089086842,6.83579931,155.47,155.43,16.6157]
[1723089087040,65.17,155.46,155.39,23.161]
[1723089087337,28.11,155.45,155.39,23.161]
[1723089087521,26.6034,155.44,155.39,16.6157]
[1723089087716,45.17,155.43,155.39,16.6157]
[1723089087933,20.0,155.42,155.39,16.6157]
[1723089088115,20.17,155.44,155.39,16.6157]
[1723089089132,26.6034,155.44,155.39,16.6157]
[1723089089326,20.17,155.44,155.39,16.6157]
[1723089090427,20.0,155.44,155.39,16.6157]
[1723089091818,45.34,155.43,155.39,16.6157]
[1723089092144,27.94,155.41,155.33,16.5142]
[1723089092332,27.94,155.39,155.33,16.5142]
[1723089092533,20.34,155.38,155.33,16.5142]
[1723089093024,20.17,155.38,155.33,16.5142]
[1723089093232,20.0,155.37,155.33,16.5142]
[1723089093446,0.17,155.38,155.33,16.5142]
[1723089093619,45.34,155.39,155.33,16.5142]
[1723089093825,20.0,155.38,155.33,16.5142]
[1723089095547,27.94,155.44,155.33,16.5142]
[1723089095752,27.94,155.46,155.34,45.0]
[1723089095942,8.95925272,155.44,155.34,45.0]
[1723089096159,6.4333,155.44,155.34,45.0]
[1723089096544,30.48715775,155.46,155.35,27.94]
[1723089096741,6.433,155.45,155.35,27.94]
[1723089097146,13.10018951,155.45,155.35,27.94]
[1723089097639,6.66718951,155.45,155.36,6.3874]
[1723089097847,6.66718951,155.45,155.37,16.6576]
[1723089098356,13.10018951,155.45,155.37,16.6576]
[1723089098662,6.66718951,155.45,155.37,16.6576]
[1723089099251,6.66718951,155.45,155.37,44.5976]
[1723089100457,6.66718951,155.45,155.39,27.94]
[1723089100633,293.6,155.55,155.39,27.94]
[1723089100634,27.94,155.53,155.39,27.94]
[1723089100828,6.66500019,155.48,155.39,27.94]
[1723089101148,6.431,155.5,155.39,27.94]
[1723089101549,6.67206275,155.48,155.39,27.94]
[1723089101860,6.67206275,155.48,155.4,45.0]
[1723089102045,20.0,155.47,155.4,45.0]
[1723089102234,20.0,155.47,155.39,27.94]
[1723089102657,20.0,155.47,155.4,45.0]
[1723089103163,20.0,155.47,155.38,16.3507]
[1723089103368,45.34,155.46,155.38,16.3507]
[1723089103569,20.0,155.45,155.38,16.3507]
[1723089105635,20.17,155.46,155.38,16.3507]
[1723089106333,20.0,155.46,155.38,16.3507]
[1723089108138,27.94,155.45,155.38,16.3507]
[1723089108463,20.0,155.44,155.38,16.3507]
[1723089109246,20.0,155.46,155.38,16.3507]
[1723089109436,27.94,155.45,155.38,16.3507]
[1723089109644,20.0,155.44,155.38,16.3507]
[1723089111761,6.66491841,155.43,155.38,16.3507]
[1723089112075,20.0,155.42,155.38,16.3507]
[1723089112664,6.66454084,155.43,155.38,16.3507]